Cogmind - Beta 9.4 @@@ ROGUE MODE // 2020.01.10 @ 01:03:24 // Winter2019/RPGLIKE Player: TehFrederick Result: Destroyed by G-34 Mercenary with Small Laser Performance ------------- Evolutions (1) 500 Regions Visited (3) 600 Robots Destroyed (27) 135 Value Destroyed (426) 426 Prototype IDs (0) 0 Alien Tech Used (0) 0 Bonus (11) 11 TOTAL SCORE: 1672 Bonus ------- High Alert Combat Kills 11 Cogmind --------- Core Integrity 0/800 Matter 297/300 Energy 125/125 System Corruption 0% Temperature Cool (6) Movement Flying (40) Location -9/Materials Parts ------- > --- POWER (1) -------- Light Ion Engine > --- PROPULSION (2) --- Flight Unit > --- UTILITY (2) ------ Transport Network Coupler > --- WEAPON (5) ------- Medium Laser Light Assault Rifle > --- INVENTORY (1) ---- EM Pulse Gun Peak State ------------ > --- POWER ------------ Light Nuclear Core > --- PROPULSION ------- Flight Unit Flight Unit > --- UTILITY ---------- Sensor Array Signal Interpreter > --- WEAPON ----------- EM Pulse Gun EM Pulse Gun Medium Laser Light Cannon > --- INVENTORY -------- (None) [Rating: 11] Favorites ----------- Power Ion Engine Engine Ion Engine Power Core Light Nuclear Core Propulsion Flight Unit Wheel Wheel Flight Unit Flight Unit Utility Signal Interpreter Device Sensor Array Processor Signal Interpreter Weapon Medium Laser Energy Gun Medium Laser Ballistic Gun Light Assault Rifle Ballistic Cannon Light Cannon Build | -11 -10 -10 -9 ------- Run | Scr Mat Min Mat Slots Evolved 6 | 3 . 1 2 Power . | . . . . Propulsion 1 | 1 . . . Utility 1 | 1 . . . Weapon 4 | 1 . 1 2 Parts Attached 21 | 5 7 1 8 Power 4 | 1 . 1 2 Engine 3 | 1 . . 2 Core 1 | . . 1 . Reactor . | . . . . Propulsion 8 | 2 4 . 2 Treads . | . . . . Leg . | . . . . Wheel 2 | 2 . . . Hover . | . . . . Flight 6 | . 4 . 2 Utility 3 | . 2 . 1 Device 1 | . 1 . . Storage . | . . . . Processor 2 | . 1 . 1 Hackware . | . . . . Protection . | . . . . Artifact . | . . . . Weapon 6 | 2 1 . 3 Energy Gun 4 | 2 . . 2 Energy Cannon . | . . . . Ballistic Gun 1 | . . . 1 Ballistic Cannon 1 | . 1 . . Launcher . | . . . . Special Weapon . | . . . . Impact Weapon . | . . . . Slashing Weapon . | . . . . Piercing Weapon . | . . . . Special Melee Weapon . | . . . . Unidentified Prototypes . | . . . . Parts Lost . | . . . . Power . | . . . . Propulsion . | . . . . Utility . | . . . . Weapon . | . . . . Highest Loss Streak . | . . . . Average Slot Usage (%) 85 | . 82 88 86 Engine 11 | . 14 10 7 Core 1 | . . 1 2 Wheel 1 | . 2 . . Flight 22 | . 25 25 19 Device 6 | . 5 12 5 Processor 9 | . 5 12 12 Energy Gun 23 | . 22 12 27 Ballistic Gun 1 | . . . 2 Ballistic Cannon 7 | . 5 12 7 Naked Turns . | . . . . Heaviest Build 15 | 9 11 11 15 Greatest Support 36 | 36 36 18 19 Greatest Overweight (x) . | . . . . Average Overweight (x) . | . . . . Largest Inventory Capacity 1 | . . 1 1 Average Capacity . | . . . 1 Most Carried 1 | . . 1 1 Average Carried . | . . . . Final Capacity 1 | . . 1 1 Final Carried 1 | . . . 1 Class Distribution -------------------- 41% | Mutant 25% | Scavenger-Mutant 19% | Scavenger-Skirmisher 8% | Gunner 4% | Skirmisher Dominant Class ---------------- Mutant | -10/Materials Scavenger-Mutant | -10/Mines Scavenger-Skirmisher | -9/Materials Resources | -11 -10 -10 -9 ----------- Run | Scr Mat Min Mat Matter Collected 556 | 250 86 90 130 Remotely . | . . . . Salvage Created 606 | . 164 97 345 Parts 43 | . 23 1 19 Haulers Intercepted 1 | . . . 1 Recyclers Shooed . | . . . . Parts Field Recycled . | . . . . Retrieved Matter . | . . . . Parts Self-Destructed . | . . . . Prevented . | . . . . Kills | -11 -10 -10 -9 ------- Run | Scr Mat Min Mat Combat Hostiles Destroyed 21 | . 11 2 8 Melee 1 | . . . 1 Guns 16 | . 9 1 6 Cannons 3 | . 1 1 1 AOE 1 | . 1 . . Classes Destroyed 7 | . 4 . 3 Builder 1 | . 1 . . Tunneler 1 | . . . 1 Hauler 1 | . . . 1 Watcher 3 | . 1 . 2 Swarmer 16 | . 9 . 7 Grunt 4 | . 2 2 . Sentry 1 | . . . 1 Best Kill Streak 8 | . 4 2 8 Combat Bots Only 3 | . 3 2 3 Max Kills in Single Turn 2 | . 2 1 1 Gunslinging 1 | . 1 . . Exploded 1 | . 1 . . Melee 1 | . . . 1 Uniques/NPCs Destroyed . | . . . . Combat | -11 -10 -10 -9 -------- Run | Scr Mat Min Mat Damage Taken 1132 | . 409 95 628 Core 970 | . 331 77 562 Absorbed by Shields . | . . . . Redirected to Core 510 | . 251 55 204 Core Remaining (%) 84 | 100 . 69 . Volleys Fired 69 | . 32 9 28 Largest 4 | . 2 2 4 Hottest 165 | . 90 85 165 Shots Fired 169 | . 64 18 87 Gun 130 | . 49 9 72 Cannon 39 | . 15 9 15 Launcher . | . . . . Special . | . . . . Kinetic 46 | . 15 9 22 Thermal 69 | . 32 9 28 Explosive . | . . . . Electromagnetic 54 | . 17 . 37 Robot Hit Streak 13 | . 13 9 4 Robot Miss Streak 6 | . 3 2 6 Penetration Max . | . . . . Secondary Targets 3 | . 1 . 2 Max Gunslinging Chain 1 | . 1 . 1 Shots Hit Robots 87 | . 38 14 35 Core Hits 36 | . 15 5 16 Critical Hits . | . . . . Critical Kills . | . . . . Critical Parts Destroyed . | . . . . Melee Attacks . | . . . . Impact . | . . . . Slashing . | . . . . Piercing . | . . . . Sneak Attacks . | . . . . Combat Hostiles . | . . . . Follow-up Attacks . | . . . . Damage Inflicted 1332 | . 617 192 523 Guns 847 | . 379 88 380 Cannons 309 | . 113 104 92 Explosions 150 | . 125 . 25 Melee . | . . . . Ramming 26 | . . . 26 Kinetic 334 | . 113 104 117 Thermal 559 | . 322 88 149 Explosive . | . . . . Electromagnetic 413 | . 182 . 231 Impact . | . . . . Slashing . | . . . . Piercing . | . . . . Highest Corruption . | . . . . Average Corruption . | . . . . Corruption Purged . | . . . . Overload Shots . | . . . . Overflow Damage 1 | . . . 1 Projectiles 1 | . . . 1 Explosions . | . . . . Melee . | . . . . Knockbacks 2 | . 2 . . Impact . | . . . . Kinetic 2 | . 2 . . Secondary . | . . . . Self-Inflicted Damage 119 | . 69 . 50 Shots 3 | . 2 . 1 Rammed 5 | . . . 5 Targets Rammed 5 | . . . 5 Kicked . | . . . . Crushed . | . . . . Highest Temperature 651 | . 342 323 651 Average Temperature 231 | . 131 182 338 Received Heat Transfer 150 | . 54 51 45 Effects 40 | . 2 1 37 Shutdowns 6 | . . . 6 Energy Bleed 6 | . 2 . 4 Interference 5 | . . . 5 Matter Decay 4 | . . 1 3 Short Circuit 7 | . . . 7 Damage (minor) 1 | . . . 1 Damage (major) 9 | . . . 9 Damage (core) 2 | . . . 2 Siege Activations . | . . . . Robots Corrupted . | . . . . Combat Hostiles . | . . . . Parts Fried 1 | . 1 . . Impact Corruptions . | . . . . Robots Melted . | . . . . Combat Hostiles . | . . . . Parts Melted 1 | . 1 . . Heat Transferred 1471 | . 792 259 420 Parts Sabotaged . | . . . . Parts Stolen . | . . . . Parts Stripped . | . . . . Power Chain Reactions 3 | . 2 . 1 Missiles Intercepted . | . . . . Alert | -11 -10 -10 -9 ------- Run | Scr Mat Min Mat Peak Influence 404 | . 287 176 404 Average Influence 176 | . 159 145 235 Maximum Alert Level 2 | . 1 . 2 Low Security (%) 69 | 100 84 100 40 Level 1 28 | . 15 . 54 Level 2 1 | . . . 4 Level 3 . | . . . . Level 4 . | . . . . Level 5 . | . . . . High Security . | . . . . Max Security . | . . . . Squads Dispatched 1 | . 1 . . Investigation . | . . . . Extermination . | . . . . Reinforcement 1 | . 1 . . Assault . | . . . . Garrison . | . . . . Intercept . | . . . . Construction Impeded . | . . . . Haulers Reinforced . | . . . . Stealth | -11 -10 -10 -9 --------- Run | Scr Mat Min Mat Distress Signals 2 | . 1 . 1 Communications Jammed . | . . . . Distress Signals . | . . . . Times Spotted 38 | . 18 2 18 Peak Tracking Total 6 | . 5 2 6 Tactical Retreats 3 | . 1 . 2 Traps | -11 -10 -10 -9 ------- Run | Scr Mat Min Mat Traps Triggered . | . . . . Indirectly . | . . . . Trap Hack Attempts . | . . . . Triggered . | . . . . Disarmed . | . . . . Reprogrammed . | . . . . Reused . | . . . . Traps Extracted . | . . . . Installed . | . . . . Triggered . | . . . . Machines | -11 -10 -10 -9 ---------- Run | Scr Mat Min Mat Machines Disabled 1 | . . . 1 Max in Single Turn 1 | . . . 1 Machines Sabotaged . | . . . . Garrisons Compromised . | . . . . Overloaded Fab Kills . | . . . . Fab Network Shutdowns . | . . . . Hacking | -11 -10 -10 -9 --------- Run | Scr Mat Min Mat Machines Accessed . | . . . . Terminals . | . . . . Fabricators . | . . . . Repair Stations . | . . . . Recycling Units . | . . . . Scanalyzers . | . . . . Garrison Access . | . . . . Total Hacks . | . . . . Successful . | . . . . Failed . | . . . . Catastrophic . | . . . . Database Lockouts . | . . . . Manual . | . . . . Terminals . | . . . . Fabricators . | . . . . Repair Stations . | . . . . Recycling Units . | . . . . Scanalyzers . | . . . . Garrison Access . | . . . . Terminal Hacks . | . . . . Fabricator Hacks . | . . . . Repair Station Hacks . | . . . . Recycling Unit Hacks . | . . . . Scanalyzer . | . . . . Garrison Access Hacks . | . . . . Unauthorized Hacks . | . . . . Terminals . | . . . . Fabricators . | . . . . Repair Stations . | . . . . Recycling Units . | . . . . Scanalyzers . | . . . . Garrison Access . | . . . . Data Cores Recovered . | . . . . Used . | . . . . Hacking Detections . | . . . . Full Trace Events . | . . . . Feedback Events . | . . . . Feedback Blocked . | . . . . Robot Schematics Acquired . | . . . . Robots Built . | . . . . Matter . | . . . . Time . | . . . . Total Robot Build Rating . | . . . . Part Schematics Acquired . | . . . . Parts Built . | . . . . Matter . | . . . . Time . | . . . . Total Part Build Rating . | . . . . Parts Repaired . | . . . . Time . | . . . . Parts Recycled . | . . . . Recycled Matter . | . . . . Retrieved Matter . | . . . . Retrieved Components . | . . . . Parts Scanalyzed . | . . . . Part Schematics Acquired . | . . . . Parts Damaged . | . . . . Bothacking | -11 -10 -10 -9 ------------ Run | Scr Mat Min Mat Used RIF Installer . | . . . . Robots Hacked . | . . . . Non-combat . | . . . . Combat . | . . . . Robot Hacks Applied . | . . . . Relay Couplers Released . | . . . . Robots Rewired . | . . . . Allies Hacked . | . . . . Hacks Repelled . | . . . . Allies | -11 -10 -10 -9 -------- Run | Scr Mat Min Mat Total Allies . | . . . . Largest Group . | . . . . Highest-Rated Group . | . . . . Highest-Rated Ally . | . . . . Total Orders . | . . . . Ally Attacks . | . . . . Total Damage . | . . . . Kills . | . . . . Allies Corrupted . | . . . . Allies Melted . | . . . . Intel | -11 -10 -10 -9 ------- Run | Scr Mat Min Mat Robot Analysis Total . | . . . . Derelict Logs Recovered . | . . . . Drone Launches . | . . . . Drone Recoveries . | . . . . Exploration | -11 -10 -10 -9 ------------- Run | Scr Mat Min Mat Turns Passed 701 | 49 309 68 275 Spaces Moved 923 | 51 404 61 407 Core 32 | 10 . . 22 Treads . | . . . . Legs . | . . . . Wheels 66 | 41 25 . . Hover . | . . . . Flight 825 | . 379 61 385 Fastest Speed 37 | 50 37 37 37 Average Speed 41 | 81 40 37 38 Slowest Speed 90 | 90 90 37 50 Overloaded Moves . | . . . . Propulsion Burnouts . | . . . . Robots Hopped 13 | . 5 . 8 Cave-ins Triggered . | . . . . Exploration Rate (%) 27 | 3 52 19 36 Regions Visited 3 Branch Regions 1 Pre-discovered Areas 1 | . . 1 . Known Exits Taken 2 | . 1 1 . Unknown Exits Taken 1 | 1 . . . Scrap Searched . | . . . . Spaces Dug . | . . . . Terrain Destroyed 8 | . 4 . 4 Melee . | . . . . Projectile . | . . . . AOE 8 | . 4 . 4 Actions | -11 -10 -10 -9 --------- Run | Scr Mat Min Mat Total 1081 | 55 480 88 458 Wait 52 | . 28 16 8 Move 895 | 50 394 60 391 Hop 12 | . 4 . 8 Pick Up . | . . . . Fast Attach 17 | 5 5 1 6 Attach 1 | . . . 1 Detach 4 | . . 1 3 Swap 3 | . 2 . 1 Drop 13 | . 5 1 7 Fire 69 | . 32 9 28 Melee . | . . . . Ram 5 | . . . 5 Kick . | . . . . Crush . | . . . . Escape Stasis . | . . . . Rewire . | . . . . Trap . | . . . . Miscellaneous 10 | . 10 . . Route ------- -11/Scrapyard -10/Materials -10/Mines -9/Materials History --------- Turn | Location | Event 3 | -11/Scrapyard | Upgraded with Propulsion slot (x1) 3 | -11/Scrapyard | Upgraded with Utility slot (x1) 3 | -11/Scrapyard | Upgraded with Weapon slot (x1) 27 | -11/Scrapyard | Discovered new exit (range 15) 50 | -11/Scrapyard | Entered Materials 301 | -10/Materials | Discovered new exit (range 10) 348 | -10/Materials | Identified exit to Mines 359 | -10/Materials | Entered Mines 360 | -10/Mines | Learned location of Storage (-8) 361 | -10/Mines | Reached level 2 361 | -10/Mines | Upgraded with Weapon slot (x1) 421 | -10/Mines | Discovered new exit (range 8) 424 | -10/Mines | Identified exit to Materials 427 | -10/Mines | Entered Materials 429 | -9/Materials | Reached level 3 429 | -9/Materials | Upgraded with Weapon slot (x1) 603 | -9/Materials | Core integrity fell below 50% 605 | -9/Materials | Core integrity fell below 20% 624 | -9/Materials | Reached level 4 629 | -9/Materials | Upgraded with Weapon slot (x1) 702 | -9/Materials | Destroyed by G-34 Mercenary with Small Laser Last Messages --------------- 00624_ S-10 Pest destroyed. 00627_ Acquired Lgt. Assault Rifle. 00629_ Overheating: Energy bleed (-16). 00629_ Upgraded: Weapon Slot (+1) 00629_ Upgraded: Heat Dissipation (+24) 00629_ Acquired 1 matter. 00630_ Acquired 9 matter. 00631_ R-06 Scavenger collects Structural Scanner. 00631_ Discarded Broken Signal Interpreter. 00635_ R-06 Scavenger collects Structural Scanner. 00640_ K-01 Serf collects debris. 00645_ Dropped Broken Flight Unit. 00645_ Dropped Broken VTOL Module. 00647_ Acquired 13 matter. 00648_ K-01 Serf collects debris. 00690_ Y-45 Defender destroyed. 00691_ K-01 Serf collects debris. 00694_ Acquired 1 matter. 00695_ K-01 Serf collects debris. 00699_ K-01 Serf cleans the Scanalyzer. Map ----- +----------------------------------------------------+ | #?????????????????????????????????????????? | | #?????????????????????????????????????????? | | #?????????????????????????????????????????? | | #?????????????????????????????????????????? | | #?????????????????????????????????????????? | | #?????????????#???????????????????????????? | | #????????????? ????? #????????????????????? | | ############? ???? #????????????????????? | | == #? ??= #????????????????????? | | % # ? == #????????????????????? | | %% # #????????????????????? | | ######## / #????????????????????? | | ???????# # #???????????????????? | | #####??# #?? ##???????????????????? | | ?# #??########????????????????????? | | """ ?# #??? T #???????????? ???????? | | """ # #??? #??????????? ??????? | | """ # #????""" ??????????? ???????? | | + #????""" [????????###a#????????? | | """ # #?????"" ???????? #???????? | | """ # #????? ???????? g"" #???????? | | """ ?# #######+#######? """k#???????? | | ?# #? g S" #???????? | | #####??# # #???????? | | ???????# # """ #???????? | | ###################### @ """ #???????? | | #?????????????#%[u# """ #???????? | | """#?????????????# # #???????? | | """############### w #?########???????? | | """# #???? #?????????? | | + #?? !#?????????? | | """# # """ #?????????? | | """#+##+########## a """ #?????????? | | """# #???# # """ #?????????? | | # #???# # #?????????? | | ##+##### """"" #???# #?######?????????? | | ?# #???# """"" #???# ????????????????? | | ## #???# """"" #???# ???????????????? | | #???# #???# ??????????????? | | ####???# #???########?????????????? | | ???????# ?#????????????????????????? | | ???????########???????????????????????????? | | ??????????????????????????????????????????? | | | | | | | | | | | | | | | +----------------------------------------------------+ Best States ------------- Heat Dissipation 49 Energy Generation 19 Energy Capacity 250 Matter Stores 300 Matter Capacity 300 Sight Range 17 Robot Scan Range 14 Terrain Scan Density 10 Evasion (%) 62 Item Schematics ----------------- None Robot Schematics ------------------ None Fabricated ------------ Nothing Alien Tech Used ----------------- None Achievements -------------- None Challenges ------------ None RPGLIKE | -11 -10 -10 -9 --------- Run | Scr Mat Min Mat Levels Raised 3 | . . 1 2 XP Earned 7720 | 3000 1335 750 2635 XP Spent 6955 | 2985 . 1150 2820 Upgrades 22 | 13 . 3 6 Propulsion Slot 1 | 1 . . . Utility Slot 1 | 1 . . . Weapon Slot 4 | 1 . 1 2 Core Integrity 4 | 4 . . . Heat Dissipation 4 | . . . 4 Energy Generation 1 | 1 . . . Mass Support 2 | 2 . . . Inventory Capacity 1 | . . 1 . Sight Range 1 | . . 1 . Sensor Range 2 | 2 . . . Melee Accuracy 1 | 1 . . . Protomatter Created 101 | . 87 . 14 Integrity Restored 175 | . 175 . . Core 166 | . 166 . . Parts 9 | . 9 . . Protomatter Decayed 20 | . 6 . 14 Game ------ Seed CompositeBackupBoregun Manual? 0 Play Time 00:16:35 Cumulative 12.6 hours Start 2020.01.10 @ 00:51:18 End 2020.01.10 @ 01:03:24 Sessions 1 Manual Loads 0 Difficulty Rogue Special Mode Winter2019/RPGLIKE Game No. 15 Rogue 15 Adventurer 0 Explorer 0 Win Type - Total 0 Types 0/0/0/0/0/0/0 Lore% 14 Gallery% 21 Achievement% 20 Wizard Run 0 Options --------- ASCII 0 Keyboard 1 Movement Numpad Keybinds 0 Fullscreen 1 Font 24/Smallcaps Map View 76x50 Tactical HUD 1 Map Filters NONE Filters NONE Steam 1 RUN: 4f893b3a-8c4d-416a-882f-1eb8dd1198c1